[Event "FIDE World Rapid-ch Open 2018"]
[White "Christiansen, Johan-Sebastian"]
[Black "Makarov, Marat"]
[Site "St. Petersburg"]
[Round "15.87"]
[Annotator "ChessBase"]
[Result "1-0"]
[Date "2018.12.28"]
[WhiteElo "2555"]
[BlackElo "2505"]
[PlyCount "189"]
[TimeControl "900+10"]

1. e4 {[%emt 0:0:0]} c5 {[%emt 0:0:0]} 2. Nf3 {[%emt 0:0:0]} d6 {[%emt 0:0:0]} 3. Nc3 {[%emt 0:0:0]} Nf6 {[%emt 0:0:1]} 4. e5 {[%emt 0:0:0]} dxe5 {[%emt 0:0:2]} 5. Nxe5 {[%emt 0:0:1]} e6 {[%emt 0:0:11]} 6. Bb5+ {[%emt 0:0:2]
} Nbd7 {[%emt 0:0:51]} 7. d4 {[%emt 0:0:2]} cxd4 {[%emt 0:0:0]} 8. Qxd4 {[%emt 0:0:2]} a6 {[%emt 0:0:3]} 9. Nxd7 {[%emt 0:5:51]} Bxd7 {[%emt 0:0:22]} 10. Bxd7+ {[%emt 0:0:3]} Qxd7 {[%emt 0:0:2]} 11. Qe3 {[%emt 0:1:15]
} Be7 {[%emt 0:0:32]} 12. 0-0 {[%emt 0:0:3]} 0-0 {[%emt 0:0:0]} 13. h3 {[%emt 0:0:47]} b5 {[%emt 0:0:38]} 14. a3 {[%emt 0:0:12]} Qc6 {[%emt 0:0:15]
} 15. Qg3 {[%emt 0:0:11]} Kh8 {[%emt 0:1:29]} 16. Be3 {[%emt 0:0:0]} a5 {[%emt 0:0:27]} 17. Rfc1 {[%emt 0:1:3]} b4 {[%emt 0:0:10]} 18. axb4 {[%emt 0:0:19]} axb4 {[%emt 0:0:2]} 19. Rxa8 {[%emt 0:0:2]} Rxa8 {[%emt 0:0:6]
} 20. Ne2 {[%emt 0:0:5]} Ne8 {[%emt 0:5:18]} 21. Nd4 {[%emt 0:0:0]} Qe4 {[%emt 0:0:19]} 22. Nf3 {[%emt 0:0:33]} Kg8 {[%emt 0:2:20]} 23. Bd4 {[%emt 0:0:33]} Bd6 {[%emt 0:1:5]} 24. Be5 {[%emt 0:1:10]} Bxe5 {[%emt 0:0:15]
} 25. Nxe5 {[%emt 0:0:2]} Nd6 {[%emt 0:1:10]} 26. Ng4 {[%emt 0:0:26]
} Qd4 {[%emt 0:0:43]} 27. c3 {[%emt 0:0:31]} Qd2 {[%emt 0:0:0]} 28. Rf1 {[%emt 0:0:47]} bxc3 {[%emt 0:0:4]} 29. bxc3 {[%emt 0:0:4]} Nf5 {[%emt 0:0:26]} 30. Qc7 {[%emt 0:0:15]} Qd6 {[%emt 0:0:26]} 31. Qc4 {[%emt 0:0:14]
} h5 {[%emt 0:0:7]} 32. Nh2 {[%emt 0:0:6]} Qa6 {[%emt 0:0:0]} 33. Qb4 {[%emt 0:0:34]} Rc8 {[%emt 0:0:11]} 34. Rc1 {[%emt 0:0:30]} Qc6 {[%emt 0:0:8]} 35. Nf3 {[%emt 0:0:6]} Qc4 {[%emt 0:0:19]} 36. Qb7 {[%emt 0:0:4]
} Qc6 37. Qb1 {[%emt 0:0:18]} Qc7 {[%emt 0:0:18]} 38. Qd3 {[%emt 0:0:22]
} Qf4 {[%emt 0:0:3]} 39. Qd1 {[%emt 0:0:47]} h4 {[%emt 0:0:0]} 40. Qe1 {[%emt 0:0:22]} Rc4 {[%emt 0:0:5]} 41. Rd1 {[%emt 0:0:8]} Qc7 {[%emt 0:0:6]} 42. Rd3 {[%emt 0:0:19]} Ra4 {[%emt 0:0:5]} 43. Qd1 {[%emt 0:0:26]
} Ra8 {[%emt 0:0:6]} 44. Ng5 {[%emt 0:0:10]} Qb6 {[%emt 0:0:0]} 45. Rd7 {[%emt 0:0:20]} f6 {[%emt 0:0:5]} 46. Ne4 {[%emt 0:0:55]} Qc6 {[%emt 0:0:3]} 47. Qg4 {[%emt 0:0:23]} Rf8 {[%emt 0:0:7]} 48. Rd1 {[%emt 0:0:35]
} Kf7 {[%emt 0:0:13]} 49. Qf3 {[%emt 0:0:13]} Qc7 {[%emt 0:0:0]} 50. Qh5+ {[%emt 0:0:30]} Kg8 {[%emt 0:0:1]} 51. Qe2 {[%emt 0:0:18]} Kf7 {[%emt 0:0:4]} 52. Re1 {[%emt 0:0:9]} Qc6 {[%emt 0:0:7]} 53. Rb1 {[%emt 0:0:22]
} Rd8 {[%emt 0:0:13]} 54. Qh5+ {[%emt 0:0:7]} Ke7 {[%emt 0:0:0]} 55. Qg4 {[%emt 0:0:12]} Qc7 {[%emt 0:0:14]} 56. Qf3 {[%emt 0:0:11]} Rb8 {[%emt 0:0:2]} 57. Ra1 {[%emt 0:0:3]} Kf7 {[%emt 0:0:13]} 58. Qh5+ {[%emt 0:0:11]
} Ke7 {[%emt 0:0:2]} 59. Qe2 {[%emt 0:0:9]} Kf7 {[%emt 0:0:0]} 60. Re1 {[%emt 0:0:12]} Re8 {[%emt 0:0:5]} 61. Qh5+ {[%emt 0:0:4]} Ke7 {[%emt 0:0:4]} 62. Nxf6 {[%emt 0:0:20]} gxf6 {[%emt 0:1:7]} 63. Qxf5 {[%emt 0:0:1]
} Qd6 {[%emt 0:0:23]} 64. Qh7+ {[%emt 0:0:6]} Kf8 {[%emt 0:0:0]} 65. Qxh4 {[%emt 0:0:9]} Kg7 {[%emt 0:0:1]} 66. Qg4+ {[%emt 0:0:13]} Kf7 {[%emt 0:0:1]} 67. Qh5+ {[%emt 0:0:1]} Kf8 {[%emt 0:0:3]} 68. Rd1 {[%emt 0:0:5]
} Qe7 {[%emt 0:0:5]} 69. Qh6+ {[%emt 0:0:13]} Qg7 {[%emt 0:0:0]} 70. Qe3 {[%emt 0:0:11]} Kg8 {[%emt 0:0:5]} 71. Rd4 {[%emt 0:0:5]} f5 {[%emt 0:0:6]} 72. Qd2 {[%emt 0:0:11]} Qf6 {[%emt 0:0:3]} 73. Rd6 {[%emt 0:0:10]
} Kf7 {[%emt 0:0:9]} 74. Rd7+ {[%emt 0:0:8]} Re7 {[%emt 0:0:0]} 75. Rd8 {[%emt 0:0:39]} Rb7 {[%emt 0:0:10]} 76. Rd7+ {[%emt 0:0:6]} Rxd7 {[%emt 0:0:4]} 77. Qxd7+ {[%emt 0:0:1]} Kg6 {[%emt 0:0:2]} 78. Qd4 {[%emt 0:0:10]
} e5 {[%emt 0:0:1]} 79. Qd5 {[%emt 0:0:16]} e4 {[%emt 0:0:2]
} 80. Qd4 {[%emt 0:0:4]} Qe6 {[%emt 0:0:5]} 81. g3 {[%emt 0:0:17]} Qa2 {[%emt 0:1:40]
} 82. Kh2 {[%emt 0:0:14]} Qe2 {[%emt 0:0:4]} 83. Qe3 {[%emt 0:0:0]} Qc2 {[%emt 0:0:2]} 84. h4 {[%emt 0:0:5]} Kf7 {[%emt 0:0:3]} 85. Kg2 {[%emt 0:0:26]} Qd1 {[%emt 0:0:11]} 86. c4 {[%emt 0:0:8]} Ke6 {[%emt 0:0:0]} 87. c5 {[%emt 0:0:16]} Kd5 {[%emt 0:0:28]} 88. Qf4 {[%emt 0:0:1]} Qh5 {[%emt 0:0:1]} 89. Qd6+ {[%emt 0:0:15]} Kc4 {[%emt 0:0:1]} 90. c6 {[%emt 0:0:13]
} Qf3+ {[%emt 0:0:10]} 91. Kg1 {[%emt 0:0:1]} e3 {[%emt 0:0:0]} 92. Qe6+ {[%emt 0:0:2]} Kb5 {[%emt 0:0:12]} 93. Qxe3 {[%emt 0:0:7]} Qd1+ {[%emt 0:0:2]} 94. Kg2 {[%emt 0:0:3]} Qd5+ {[%emt 0:0:4]} 95. Qf3 {[%emt 0:0:1]
} 1-0

[Event "FIDE World Rapid-ch Open 2018"]
[White "Dzhumagaliev, Yan"]
[Black "Pershin, Denis"]
[Site "St. Petersburg"]
[Round "15.88"]
[Annotator "NA"]
[Result "0-1"]
[Date "2018.12.28"]
[WhiteElo "2410"]
[BlackElo "2400"]
[PlyCount "66"]
[TimeControl "900+10"]

1. Nf3 {[%emt 0:0:0]} d5 {[%emt 0:0:0]} 2. b3 {[%emt 0:0:0]} Nf6 {[%emt 0:0:0]
} 3. Bb2 {[%emt 0:0:1]} Bg4 {[%emt 0:0:0]} 4. Ne5 {[%emt 0:0:0]} Bf5 {[%emt 0:0:0]} 5. e3 {[%emt 0:0:22]} Nbd7 {[%emt 0:0:0]} 6. g4 {[%emt 0:0:44]} Nxe5 {[%emt 0:0:20]} 7. gxf5 {[%emt 0:0:3]} Ned7 {[%emt 0:0:0]} 8. c4 {[%emt 0:0:44]} dxc4 {[%emt 0:0:52]} 9. Bxc4 {[%emt 0:0:11]} g6 {[%emt 0:0:1]} 10. Qf3 {[%emt 0:0:54]} c6 {[%emt 0:0:2]} 11. e4 {[%emt 0:0:10]
} Bg7 {[%emt 0:0:13]} 12. fxg6 {[%emt 0:2:5]} hxg6 {[%emt 0:0:0]} 13. e5 {[%emt 0:0:2]} Nd5 {[%emt 0:0:8]} 14. e6 {[%emt 0:0:2]} N7f6 {[%emt 0:0:2]} 15. exf7+ {[%emt 0:0:1]} Kxf7 {[%emt 0:0:1]} 16. Nc3 {[%emt 0:0:23]} Qd7 {[%emt 0:0:6]} 17. 0-0-0 {[%emt 0:0:28]} b5 {[%emt 0:0:0]} 18. Bd3 {[%emt 0:1:30]} Rh3 {[%emt 0:0:16]} 19. Bxg6+ {[%emt 0:0:46]
} Kxg6 {[%emt 0:0:5]} 20. Qg2+ {[%emt 0:0:1]} Kh7 {[%emt 0:3:41]} 21. Rhg1 {[%emt 0:0:27]} Rg8 {[%emt 0:0:31]} 22. Ne4 {[%emt 0:0:2]} Bh6 {[%emt 0:0:0]} 23. Qh1 {[%emt 0:0:1]} Qf5 {[%emt 0:1:2]} 24. Rxg8 {[%emt 0:2:5]} Kxg8 {[%emt 0:0:1]} 25. Bxf6 {[%emt 0:0:39]} exf6 {[%emt 0:0:53]} 26. Qg2+ {[%emt 0:0:27]} Bg5 {[%emt 0:0:1]} 27. Ng3 {[%emt 0:1:52]} Qe5 {[%emt 0:0:0]} 28. Kb1 {[%emt 0:0:4]} Rh4 {[%emt 0:0:9]} 29. Rc1 {[%emt 0:0:24]} Nb4 {[%emt 0:1:10]} 30. Qf3 {[%emt 0:0:12]} Rd4 {[%emt 0:0:19]} 31. Rd1 {[%emt 0:1:1]
} Nd3 {[%emt 0:0:15]} 32. Qh5 {[%emt 0:0:42]} Rd7 {[%emt 0:0:0]} 33. Qg6+ {[%emt 0:0:13]} Kf8 {[%emt 0:0:1]} 0-1

[Event "FIDE World Rapid-ch Open 2018"]
[White "Hirneise, Jens"]
[Black "Sokolov, Andrei"]
[Site "St. Petersburg"]
[Round "15.89"]
[Annotator "ChessBase"]
[Result "0-1"]
[Date "2018.12.28"]
[WhiteElo "2371"]
[BlackElo "2532"]
[PlyCount "118"]
[TimeControl "900+10"]

1. e4 {[%emt 0:0:0]} d6 {[%emt 0:0:0]} 2. d4 {[%emt 0:0:0]} Nf6 {[%emt 0:0:0]} 3. Nc3 {[%emt 0:0:0]} e5 {[%emt 0:0:0]} 4. Nf3 {[%emt 0:0:0]} Nbd7 {[%emt 0:0:0]} 5. Bc4 {[%emt 0:0:5]} Be7 {[%emt 0:0:0]} 6. 0-0 {[%emt 0:0:2]
} 0-0 {[%emt 0:0:1]} 7. a4 {[%emt 0:0:4]} c6 {[%emt 0:0:3]} 8. Re1 {[%emt 0:0:7]} b6 {[%emt 0:0:16]} 9. b3 {[%emt 0:0:52]} a6 {[%emt 0:0:0]} 10. Bb2 {[%emt 0:0:17]} Bb7 {[%emt 0:0:19]} 11. dxe5 {[%emt 0:0:27]} dxe5 {[%emt 0:0:6]} 12. Nh4 {[%emt 0:0:13]} b5 {[%emt 0:0:34]} 13. Bd3 {[%emt 0:0:15]
} g6 {[%emt 0:0:30]} 14. Nf3 {[%emt 0:0:18]} Re8 {[%emt 0:0:0]} 15. Qe2 {[%emt 0:0:35]} Qc7 {[%emt 0:0:32]} 16. Nd1 {[%emt 0:1:35]} Bb4 {[%emt 0:0:30]} 17. Bc3 {[%emt 0:1:24]} Bxc3 {[%emt 0:0:14]} 18. Nxc3 {[%emt 0:0:1]
} Nc5 {[%emt 0:0:41]} 19. Qe3 {[%emt 0:0:7]} Qe7 {[%emt 0:0:0]} 20. h3 {[%emt 0:0:23]} Rad8 {[%emt 0:1:0]} 21. Red1 {[%emt 0:0:42]} Bc8 {[%emt 0:0:57]} 22. Ne1 {[%emt 0:3:17]} Ne6 {[%emt 0:0:55]} 23. Bf1 {[%emt 0:0:53]
} Nd4 {[%emt 0:0:53]} 24. Ne2 {[%emt 0:0:29]} c5 {[%emt 0:0:0]} 25. axb5 axb5 26. b4 {[%emt 0:0:47]} Bb7 {[%emt 0:0:49]} 27. bxc5 {[%emt 0:0:15]
} Qxc5 {[%emt 0:0:19]} 28. Ng3 {[%emt 0:1:41]} b4 {[%emt 0:0:0]} 29. Bd3 {[%emt 0:0:42]} Rd6 {[%emt 0:1:38]} 30. Nf1 {[%emt 0:0:19]} Red8 {[%emt 0:1:38]} 31. Nd2 {[%emt 0:0:10]} Ne6 {[%emt 0:0:1]} 32. Nc4 {[%emt 0:0:20]
} Rd4 {[%emt 0:1:1]} 33. Na5 {[%emt 0:0:35]} R4d7 {[%emt 0:0:0]} 34. Nxb7 {[%emt 0:0:36]} Qxe3 {[%emt 0:0:25]} 35. fxe3 {[%emt 0:0:1]} Rxb7 {[%emt 0:0:1]} 36. Nf3 {[%emt 0:1:20]} Nc5 {[%emt 0:0:24]} 37. Nxe5 {[%emt 0:0:17]
} Re8 {[%emt 0:0:58]} 38. Nc6 {[%emt 0:0:12]} Nfxe4 {[%emt 0:0:0]} 39. Bxe4 {[%emt 0:0:26]} Rxe4 {[%emt 0:0:14]} 40. Ra5 {[%emt 0:0:26]
} Ne6 {[%emt 0:0:13]} 41. Re5 {[%emt 0:0:48]} Rxe5 {[%emt 0:0:23]} 42. Nxe5 {[%emt 0:0:2]} Rc7 {[%emt 0:0:2]} 43. Nd3 {[%emt 0:0:15]} Rc4 {[%emt 0:0:0]} 44. Rb1 {[%emt 0:0:17]} Rxc2 {[%emt 0:0:1]} 45. Nxb4 {[%emt 0:0:8]} Rd2 {[%emt 0:0:3]} 46. Rc1 {[%emt 0:0:19]} Kg7 {[%emt 0:0:9]} 47. Rc4 {[%emt 0:0:28]
} h5 {[%emt 0:0:21]} 48. Rc2 {[%emt 0:0:18]} Rd1+ {[%emt 0:0:0]} 49. Kf2 {[%emt 0:0:4]} Ng5 {[%emt 0:0:8]} 50. Ke2 {[%emt 0:0:8]} Rg1 {[%emt 0:0:8]} 51. Kf2 {[%emt 0:0:4]} Rh1 {[%emt 0:0:16]} 52. Kg3 {[%emt 0:0:24]
} Rf1 {[%emt 0:0:7]} 53. Nd5 {[%emt 0:0:5]} Ne4+ {[%emt 0:0:0]} 54. Kh2 {[%emt 0:0:2]} h4 {[%emt 0:0:46]} 55. Rc4 {[%emt 0:0:23]} f5 {[%emt 0:0:1]
} 56. Nc3 {[%emt 0:0:8]} Rc1 {[%emt 0:0:25]} 57. Rc7+ {[%emt 0:0:2]
} Kh6 {[%emt 0:0:1]} 58. Nd5 {[%emt 0:0:15]} Re1 {[%emt 0:0:0]} 59. Nc3 {[%emt 0:0:13]} Ng3 {[%emt 0:0:7]} 0-1

[Event "FIDE World Rapid-ch Open 2018"]
[White "Chen, Qi b"]
[Black "Tsoi, Dmitry"]
[Site "St. Petersburg"]
[Round "15.90"]
[Annotator "NA"]
[Result "1-0"]
[Date "2018.12.28"]
[WhiteElo "2437"]
[BlackElo "2424"]
[PlyCount "103"]
[TimeControl "900+10"]

1. e4 {[%emt 0:0:0]} e5 {[%emt 0:0:0]} 2. Bc4 {[%emt 0:0:0]} Nf6 {[%emt 0:0:0]
} 3. d3 {[%emt 0:0:0]} d6 {[%emt 0:0:7]} 4. Nc3 {[%emt 0:0:0]} c6 {[%emt 0:0:5]} 5. Nf3 {[%emt 0:0:16]} Be7 {[%emt 0:0:2]} 6. 0-0 {[%emt 0:0:7]
} 0-0 {[%emt 0:0:3]} 7. Bb3 {[%emt 0:0:11]} Nbd7 {[%emt 0:0:0]} 8. a3 {[%emt 0:0:5]} b5 {[%emt 0:0:5]} 9. Ne2 {[%emt 0:0:8]} Bb7 {[%emt 0:0:8]
} 10. Ng3 {[%emt 0:0:5]} Nc5 {[%emt 0:0:20]} 11. Ba2 {[%emt 0:0:0]} Qc7 {[%emt 0:0:5]} 12. Re1 {[%emt 0:0:5]} Rae8 {[%emt 0:0:2]} 13. Nf5 {[%emt 0:0:23]} Bc8 {[%emt 0:0:5]} 14. Nxe7+ {[%emt 0:0:25]} Qxe7 {[%emt 0:0:3]
} 15. b4 {[%emt 0:0:15]} Ncd7 {[%emt 0:0:36]} 16. c4 {[%emt 0:0:0]} a6 {[%emt 0:0:7]} 17. a4 {[%emt 0:0:33]} Bb7 {[%emt 0:0:6]} 18. Bd2 {[%emt 0:1:10]} Nb6 {[%emt 0:0:40]} 19. cxb5 {[%emt 0:1:21]} cxb5 {[%emt 0:0:3]
} 20. axb5 {[%emt 0:2:13]} axb5 {[%emt 0:0:2]} 21. Bb3 {[%emt 0:0:2]
} Ra8 {[%emt 0:0:27]} 22. Qe2 {[%emt 0:0:11]} Bc6 {[%emt 0:0:0]} 23. h3 {[%emt 0:0:21]} Qb7 {[%emt 0:0:6]} 24. Bg5 {[%emt 0:0:25]} Nbd7 {[%emt 0:0:5]} 25. Nh4 {[%emt 0:0:12]} Rxa1 {[%emt 0:1:30]} 26. Rxa1 {[%emt 0:0:5]
} d5 {[%emt 0:0:1]} 27. f3 {[%emt 0:0:36]} h6 {[%emt 0:0:38]} 28. Be3 {[%emt 0:0:5]} Ra8 {[%emt 0:0:12]} 29. Rxa8+ {[%emt 0:1:6]} Qxa8 {[%emt 0:0:2]
} 30. Qb2 {[%emt 0:0:29]} Qf8 {[%emt 0:1:40]} 31. Bd2 {[%emt 0:0:0]} Kh7 {[%emt 0:1:57]} 32. Nf5 {[%emt 0:0:15]} h5 {[%emt 0:2:32]} 33. Qc1 {[%emt 0:0:26]} Qa8 {[%emt 0:3:18]} 34. Kh2 {[%emt 0:0:28]} g6 {[%emt 0:0:0]} 35. Nd6 {[%emt 0:0:57]} Kg8 {[%emt 0:0:24]} 36. Bg5 {[%emt 0:0:11]} Nh7 {[%emt 0:0:45]} 37. Bh4 {[%emt 0:0:32]} Nhf8 {[%emt 0:0:34]} 38. Ne8 {[%emt 0:1:33]
} Qxe8 {[%emt 0:0:31]} 39. Qxc6 {[%emt 0:0:1]} dxe4 {[%emt 0:0:0]} 40. dxe4 {[%emt 0:0:10]} Qb8 {[%emt 0:0:21]} 41. Qd5 {[%emt 0:1:1]} Qe8 {[%emt 0:0:14]} 42. Qxb5 {[%emt 0:0:3]} Nf6 {[%emt 0:0:34]} 43. Qxe8 {[%emt 0:0:54]
} Nxe8 {[%emt 0:0:2]} 44. b5 {[%emt 0:0:1]} Nd7 {[%emt 0:0:0]} 45. Bd8 {[%emt 0:0:12]} Nd6 {[%emt 0:0:2]} 46. b6 {[%emt 0:0:11]} Kf8 {[%emt 0:0:40]} 47. Bd5 {[%emt 0:0:27]} Nc5 {[%emt 0:0:10]} 48. Bc7 {[%emt 0:0:39]
} Ke7 {[%emt 0:0:13]} 49. Bxd6+ {[%emt 0:0:10]} Kxd6 {[%emt 0:0:0]} 50. Bxf7 {[%emt 0:0:1]} g5 {[%emt 0:0:21]} 51. Bxh5 {[%emt 0:0:15]} Ne6 {[%emt 0:0:8]} 52. Bf7 {[%emt 0:0:10] Kd5} 1-0

[Event "FIDE World Rapid-ch Open 2018"]
[White "Iljiushenok, Ilia"]
[Black "Hirneise, Tobias"]
[Site "St. Petersburg"]
[Round "15.91"]
[Annotator "ChessBase"]
[Result "0-1"]
[Date "2018.12.28"]
[WhiteElo "2533"]
[BlackElo "2464"]
[PlyCount "104"]
[TimeControl "900+10"]

1. e4 {[%emt 0:0:0]} c6 {[%emt 0:0:0]} 2. d4 {[%emt 0:0:0]} d5 {[%emt 0:0:0]} 3. e5 {[%emt 0:0:0]} Bf5 {[%emt 0:0:0]} 4. h4 {[%emt 0:0:0]} h6 {[%emt 0:0:3]
} 5. g4 {[%emt 0:0:0]} Bd7 {[%emt 0:0:1]} 6. Be3 {[%emt 0:0:0]} e6 {[%emt 0:1:19]} 7. Nc3 {[%emt 0:0:16]} h5 {[%emt 0:0:24]} 8. gxh5 {[%emt 0:0:12]
} Qb6 {[%emt 0:0:11]} 9. Na4 {[%emt 0:0:42]} Qc7 {[%emt 0:0:0]} 10. f4 {[%emt 0:1:26]} Nh6 {[%emt 0:0:12]} 11. Bd3 {[%emt 0:0:26]} b6 {[%emt 0:0:33]
} 12. Nc3 {[%emt 0:1:5]} c5 {[%emt 0:0:12]} 13. Nf3 {[%emt 0:0:0]} Nc6 {[%emt 0:1:3]} 14. Nb5 {[%emt 0:0:30]} Qb8 {[%emt 0:0:12]} 15. c3 {[%emt 0:0:2]} c4 {[%emt 0:1:7]} 16. Bc2 {[%emt 0:0:6]} a6 {[%emt 0:0:0]} 17. Nd6+ {[%emt 0:1:11]} Bxd6 {[%emt 0:0:2]} 18. exd6 {[%emt 0:0:0]} Ng4 {[%emt 0:1:14]} 19. Qe2 {[%emt 0:0:24]} Qxd6 {[%emt 0:1:49]} 20. Ne5 {[%emt 0:0:2]} Nxe3 {[%emt 0:1:24]} 21. Qxe3 {[%emt 0:0:2]} Rxh5 {[%emt 0:0:27]
} 22. 0-0-0 {[%emt 0:0:39]} Nxe5 {[%emt 0:1:1]} 23. dxe5 {[%emt 0:0:1]
} Qc5 {[%emt 0:0:6]} 24. Qg3 {[%emt 0:4:28]} 0-0-0 {[%emt 0:0:0]} 25. f5 {[%emt 0:0:0]} exf5 {[%emt 0:0:24]} 26. Qf3 {[%emt 0:0:2]} Rhh8 {[%emt 0:1:54]} 27. Rxd5 {[%emt 0:0:5]} Qc6 {[%emt 0:1:2]} 28. Rhd1 {[%emt 0:0:19]
} Kc7 {[%emt 0:0:10]} 29. Qg3 {[%emt 0:3:22]} Qh6+ {[%emt 0:0:0]} 30. Kb1 {[%emt 0:0:1]} Bc6 {[%emt 0:1:24]} 31. Rd6 {[%emt 0:0:19]} Rxd6 {[%emt 0:0:37]} 32. exd6+ Kb7 33. Bxf5 {[%emt 0:0:54]} Rd8 {[%emt 0:0:0]} 34. Ka1 {[%emt 0:3:11]} Qf6 {[%emt 0:0:1]} 35. Bh3 {[%emt 0:0:13]} Qf3 {[%emt 0:0:9]} 36. Qxf3 {[%emt 0:0:26]} Bxf3 {[%emt 0:0:1]} 37. Rd4 {[%emt 0:0:1]
} b5 {[%emt 0:0:34]} 38. b3 {[%emt 0:0:1]} Kc6 {[%emt 0:0:23]
} 39. d7 {[%emt 0:0:13]} Bd5 {[%emt 0:0:10]} 40. Kb2 {[%emt 0:0:34]} cxb3 {[%emt 0:0:9]
} 41. axb3 {[%emt 0:0:1]} Be6 {[%emt 0:0:2]} 42. Bxe6 {[%emt 0:0:27]
} fxe6 {[%emt 0:0:0]} 43. c4 {[%emt 0:0:6]} Rxd7 {[%emt 0:0:0]} 44. cxb5+ {[%emt 0:0:1]} axb5 {[%emt 0:0:2]} 45. Rg4 {[%emt 0:0:1]} Kd5 {[%emt 0:0:9]} 46. Kc3 {[%emt 0:0:6]} Rf7 {[%emt 0:0:20]} 47. Kb4 {[%emt 0:0:16]
} e5 {[%emt 0:0:5]} 48. Kxb5 {[%emt 0:0:6]} e4 {[%emt 0:0:0]} 49. Rg5+ {[%emt 0:0:16]} Kd4 {[%emt 0:0:2]} 50. Kc6 {[%emt 0:0:4]} e3 {[%emt 0:0:7]} 51. Rd5+ {[%emt 0:0:20]} Ke4 {[%emt 0:0:9]} 52. Rd8 {[%emt 0:0:1]
} Rf5 {[%emt 0:0:16]} 0-1

[Event "FIDE World Rapid-ch Open 2018"]
[White "Drygalov, Sergey"]
[Black "Baron, Tal"]
[Site "St. Petersburg"]
[Round "15.92"]
[Annotator "ChessBase"]
[Result "1-0"]
[Date "2018.12.28"]
[WhiteElo "2446"]
[BlackElo "2532"]
[PlyCount "67"]
[TimeControl "900+10"]

1. d4 {[%emt 0:0:0]} Nf6 {[%emt 0:0:0]} 2. Nf3 {[%emt 0:0:0]} d5 {[%emt 0:0:0]
} 3. c4 {[%emt 0:0:0]} e6 {[%emt 0:0:0]} 4. Nc3 {[%emt 0:0:0]} dxc4 {[%emt 0:0:0]} 5. e4 {[%emt 0:0:6]} Bb4 {[%emt 0:0:0]} 6. Bxc4 {[%emt 0:0:6]} Nxe4 {[%emt 0:0:0]} 7. 0-0 {[%emt 0:0:2]} Nxc3 {[%emt 0:0:0]} 8. bxc3 {[%emt 0:0:2]} Be7 {[%emt 0:0:1]} 9. Ne5 {[%emt 0:0:32]} 0-0 {[%emt 0:0:6]} 10. Qg4 {[%emt 0:0:9]} Nc6 {[%emt 0:0:2]} 11. Bf4 {[%emt 0:0:40]
} Bf6 {[%emt 0:1:14]} 12. Nxc6 {[%emt 0:1:45]} bxc6 {[%emt 0:0:0]} 13. Qg3 {[%emt 0:0:1]} Bh4 {[%emt 0:0:5]} 14. Qf3 {[%emt 0:0:18]} Bb7 {[%emt 0:0:27]} 15. Bd3 {[%emt 0:0:12]} Bg5 {[%emt 0:2:36]} 16. Bg3 {[%emt 0:1:50]
} Rb8 {[%emt 0:0:31]} 17. Rab1 {[%emt 0:0:2]} Ba8 {[%emt 0:0:0]} 18. Qe4 {[%emt 0:2:52]} g6 {[%emt 0:0:15]} 19. Qe5 {[%emt 0:0:7]} Qd5 {[%emt 0:4:29]} 20. Be4 {[%emt 0:0:57]} Qxe5 {[%emt 0:0:7]} 21. Bxe5 {[%emt 0:0:3]
} Bd2 {[%emt 0:0:38]} 22. c4 {[%emt 0:0:18]} Bc3 {[%emt 0:0:0]} 23. c5 {[%emt 0:1:19]} Rxb1 {[%emt 0:0:13]} 24. Rxb1 {[%emt 0:0:6]} f6 {[%emt 0:0:3]} 25. Bxc7 {[%emt 0:0:8]} Bxd4 {[%emt 0:0:14]} 26. Bd6 {[%emt 0:0:3]
} Rd8 {[%emt 0:0:32]} 27. Kf1 {[%emt 0:0:58]} Kf7 {[%emt 0:0:0]} 28. Bd3 {[%emt 0:1:53]} f5 {[%emt 0:1:36]} 29. Bc4 {[%emt 0:0:51]} Bg7 {[%emt 0:1:8]} 30. Rb3 {[%emt 0:0:51]} Bf8 {[%emt 0:1:43]} 31. Bxf8 {[%emt 0:0:2]
} Rxf8 {[%emt 0:0:26]} 32. Ra3 {[%emt 0:0:11]} Kf6 {[%emt 0:0:0]} 33. Rxa7 {[%emt 0:0:21]} Rb8 {[%emt 0:0:34]} 34. Ke2 {[%emt 0:1:20]} 1-0

[Event "FIDE World Rapid-ch Open 2018"]
[White "Shubin, Kirill"]
[Black "Gaifullin, Artur"]
[Site "St. Petersburg"]
[Round "15.94"]
[Annotator "NA"]
[Result "0-1"]
[Date "2018.12.28"]
[WhiteElo "2334"]
[BlackElo "2448"]
[PlyCount "64"]
[TimeControl "900+10"]

1. e4 {[%emt 0:0:0]} c6 {[%emt 0:0:0]} 2. d4 {[%emt 0:0:0]} d5 {[%emt 0:0:0]} 3. exd5 {[%emt 0:0:0]} cxd5 {[%emt 0:0:0]} 4. Bd3 {[%emt 0:0:0]} Nc6 {[%emt 0:0:0]} 5. c3 {[%emt 0:0:2]} Qc7 {[%emt 0:0:0]} 6. Ne2 {[%emt 0:0:1]
} Bg4 {[%emt 0:0:0]} 7. 0-0 {[%emt 0:0:2]} Nf6 {[%emt 0:0:0]} 8. Qe1 {[%emt 0:0:2]} g6 {[%emt 0:1:0]} 9. f3 {[%emt 0:1:16]} Bd7 {[%emt 0:0:1]
} 10. Na3 {[%emt 0:0:46]} Bg7 {[%emt 0:0:33]} 11. Nc2 {[%emt 0:0:0]} 0-0 {[%emt 0:0:9]} 12. Bf4 {[%emt 0:0:41]} e5 {[%emt 0:0:4]} 13. dxe5 {[%emt 0:0:31]} Nh5 {[%emt 0:0:3]} 14. e6 {[%emt 0:1:1]} Nxf4 {[%emt 0:1:4]
} 15. Nxf4 {[%emt 0:0:1]} Qb6+ {[%emt 0:0:2]} 16. Qf2 {[%emt 0:1:21]
} Qxf2+ {[%emt 0:0:3]} 17. Rxf2 {[%emt 0:0:8]} fxe6 {[%emt 0:0:0]} 18. Ne2 {[%emt 0:0:2]} Ne5 {[%emt 0:0:4]} 19. Rd1 {[%emt 0:0:9]} Rae8 {[%emt 0:1:21]} 20. Ned4 {[%emt 0:0:41]} Nxd3 {[%emt 0:0:56]} 21. Rxd3 {[%emt 0:0:1]} e5 {[%emt 0:0:6]} 22. Nb3 {[%emt 0:0:20]} Bc6 {[%emt 0:0:0]} 23. Nb4 {[%emt 0:0:7]} e4 {[%emt 0:0:8]} 24. fxe4 {[%emt 0:0:23]} dxe4 {[%emt 0:0:16]} 25. Re3 {[%emt 0:0:19]} Rxf2 {[%emt 0:0:16]} 26. Kxf2 {[%emt 0:0:2]
} Bh6 {[%emt 0:0:39]} 27. Rh3 {[%emt 0:0:45]} Rf8+ {[%emt 0:0:0]} 28. Ke1 {[%emt 0:0:50]} Bb5 {[%emt 0:0:28]} 29. Rxh6 {[%emt 0:0:2]} e3 {[%emt 0:0:2]} 30. Nd2 {[%emt 0:0:22]} Rf2 {[%emt 0:0:20]} 31. Rh3 {[%emt 0:1:46]
} exd2+ {[%emt 0:2:9]} 32. Kd1 {[%emt 0:0:1]} Rxg2 {[%emt 0:0:0]} 0-1